Workbook

Sheet Documentation
A1: First National Bank New Loan Report
A3: Author | B3: Akaria Babbs
A4: Date | B4: 2016-01-15
A5: Purpose | B5: Monthly "New Loan Report" for the Board of Directors to list and summarize all new loans for residential housing in the past month.

Sheet Loan Data
A1: First National Bank - New Loans
A3: Customer | B3: Selling Price | C3: Loan Term | D3: Interest Rate | E3: Down Payment | F3: Amount to be Financed | G3: Monthly Payment
A4: Allen | B4: 265354 | C4: 30 | D4: =VLOOKUP(C4,$A$17:$B$20,2,FALSE) -> 0.0625 | E4: =VLOOKUP(C4,$A$17:$C$20,3,FALSE)*B4 -> 66338.5 | F4: =B4-E4 -> 199015.5 | G4: =PMT(D4/12,C4*12,-F4,,1) -> 1219.023584
A5: Arnold | B5: 328788 | C5: 15 | D5: =VLOOKUP(C5,$A$17:$B$20,2,FALSE) -> 0.0575 | E5: =VLOOKUP(C5,$A$17:$C$20,3,FALSE)*B5 -> 49318.2 | F5: =B5-E5 -> 279469.8 | G5: =PMT(D5/12,C5*12,-F5,,1) -> 2309.678201
A6: Barber | B6: 500000 | C6: 15 | D6: 0.0575 | E6: 75000 | F6: 425000 | G6: 3512.41256
A7: Bollis | B7: 112485 | C7: 30 | D7: 0.0625 | E7: 28121.25 | F7: 84363.75 | G7: 516.7507097
A8: George | B8: 350000 | C8: 30 | D8: 0.0625 | E8: 87500 | F8: 262500 | G8: 1607.883259
A9: Hood | B9: 761978 | C9: 20 | D9: 0.06 | E9: 152395.6 | F9: 609582.4 | G9: 4345.51009
A10: Morgan | B10: 192940 | C10: 15 | D10: 0.0575 | E10: 28941 | F10: 163999 | G10: 1355.369759
A11: Paul | B11: 606563 | C11: 20 | D11: 0.06 | E11: 121312.6 | F11: 485250.4 | G11: 3459.188634
A12: Pinder | B12: 319765 | C12: 30 | D12: 0.0625 | E12: 79941.25 | F12: 239823.75 | G12: 1468.985115
A17: Loan Term | B17: Interest Rate | C17: % Required for Down Payment
A18: 15 | B18: 0.0575 | C18: 0.15
A19: 20 | B19: 0.06 | C19: 0.2
A20: 30 | B20: 0.0625 | C20: 0.25
B21: Loan Statistics
B22: Number of Loans | C22: =COUNTIF(G4:G12,">0") -> 9
B23: Highest Amount Financed | C23: =MAX(F4:F12) -> 609582.4
B24: Lowest Amount Financed | C24: =MIN(F4:F12) -> 84363.75
B25: Total Amount Financed | C25: =SUM(F4:F12) -> 2749004.6
A27: Todays Date | B27: =TODAY() -> 2016-01-15

Sheet Loan Calculator
A1: Interactive Loan Calculator
A2: Please provide the following information: | D2: Based on the information you have provided, your loan option are:
A3: What is the price of the home? | B3: 125000 | D3: Years of Loan | E3: Interest | F3: Down Payment | G3: Monthly Mortgage Payment
A4: Do you wish to put any additional money down? | D4: 15 | E4: 0.0575 | F4: =B3*0.15 -> 18750 | G4: =PMT(E4/12,D4*12,-($B$3-F4-$B$4),,IF($B$5="Yes",1,0)) -> 882.3107175 | I4: Yes
A5: Pay at the beginning of month? | B5: No | D5: 20 | E5: 0.06 | F5: =B3*0.2 -> 25000 | G5: =PMT(E5/12,D5*12,-($B$3-F5-$B$4),,IF($B$5="Yes",1,0)) -> 716.4310585 | I5: No
D6: 30 | E6: 0.0625 | F6: =B3*0.25 -> 31250 | G6: 577.2348754
